[Event "Late-Titled-Tuesday-Blitz-February-20-2024"]
[Site "Chess.com"]
[Date "2024.02.20"]
[Round "4"]
[White "Mesa_1"]
[Black "AsaHoffmann"]
[Result "1-0"]
[WhiteElo "2554"]
[BlackElo "2376"]
[TimeControl "180+1"]
[EndTime "14:37:34 PST"]
[Termination "Mesa_1 won by resignation"]

1. d4 {[%clk 0:02:55.5]} 1... Nf6 {[%clk 0:02:59.4]} 2. c4 {[%clk 0:02:56.1]}
2... c5 {[%clk 0:02:58.9]} 3. d5 {[%clk 0:02:56.3]} 3... e5 {[%clk 0:02:58.2]}
4. Nc3 {[%clk 0:02:55.9]} 4... d6 {[%clk 0:02:58.2]} 5. e4 {[%clk 0:02:56.6]}
5... Be7 {[%clk 0:02:58.2]} 6. Nf3 {[%clk 0:02:57.2]} 6... Nbd7 {[%clk
0:02:58.1]} 7. h3 {[%clk 0:02:57.8]} 7... Nf8 {[%clk 0:02:58.1]} 8. g3 {[%clk
0:02:58.5]} 8... Ng6 {[%clk 0:02:58]} 9. h4 {[%clk 0:02:56.9]} 9... Bg4 {[%clk
0:02:51.8]} 10. Be2 {[%clk 0:02:56.8]} 10... O-O {[%clk 0:02:51.4]} 11. Ng5
{[%clk 0:02:54.5]} 11... Bxe2 {[%clk 0:02:47.2]} 12. Qxe2 {[%clk 0:02:55.4]}
12... h6 {[%clk 0:02:47.2]} 13. Nh3 {[%clk 0:02:51.2]} 13... Qd7 {[%clk
0:02:43.4]} 14. h5 {[%clk 0:02:47.8]} 14... Nh8 {[%clk 0:02:41.2]} 15. Ng1
{[%clk 0:02:46]} 15... Nh7 {[%clk 0:02:40.3]} 16. Nf3 {[%clk 0:02:41.9]} 16...
a6 {[%clk 0:02:39.6]} 17. a4 {[%clk 0:02:39.8]} 17... b6 {[%clk 0:02:39.6]} 18.
Be3 {[%clk 0:02:38.7]} 18... f5 {[%clk 0:02:39.2]} 19. exf5 {[%clk 0:02:36.9]}
19... Qxf5 {[%clk 0:02:38.7]} 20. Nd2 {[%clk 0:02:34.8]} 20... Bg5 {[%clk
0:02:34.7]} 21. Nde4 {[%clk 0:02:31.3]} 21... Rad8 {[%clk 0:02:34]} 22. O-O-O
{[%clk 0:02:24.8]} 22... Bxe3+ {[%clk 0:02:33.3]} 23. Qxe3 {[%clk 0:02:25.7]}
23... Qf3 {[%clk 0:02:31.2]} 24. Qxf3 {[%clk 0:02:18.4]} 24... Rxf3 {[%clk
0:02:30.4]} 25. Kd2 {[%clk 0:02:18.6]} 25... Rff8 {[%clk 0:02:08.3]} 26. Ke2
{[%clk 0:02:15.1]} 26... Nf7 {[%clk 0:02:06.4]} 27. Ra1 {[%clk 0:02:06.7]} 27...
Nfg5 {[%clk 0:02:02.6]} 28. Ra3 {[%clk 0:01:51.6]} 28... Nxe4 {[%clk 0:02:01.3]}
29. Nxe4 {[%clk 0:01:52.5]} 29... Ng5 {[%clk 0:01:59.4]} 30. Nxg5 {[%clk
0:01:52.5]} 30... hxg5 {[%clk 0:01:59.3]} 31. Rb3 {[%clk 0:01:53.4]} 31... Rb8
{[%clk 0:01:56.8]} 32. h6 {[%clk 0:01:49.3]} 32... g6 {[%clk 0:01:51.4]} 33. Rf3
{[%clk 0:01:48]} 33... Kh7 {[%clk 0:01:48.5]} 34. Rxf8 {[%clk 0:01:25.5]} 34...
Rxf8 {[%clk 0:01:47.6]} 35. Ke3 {[%clk 0:01:26.4]} 35... b5 {[%clk 0:01:42.2]}
36. cxb5 {[%clk 0:01:21.2]} 36... axb5 {[%clk 0:01:42.1]} 37. a5 {[%clk
0:01:21.4]} 37... b4 {[%clk 0:01:42]} 38. Kd3 {[%clk 0:01:14.8]} 38... Rxf2
{[%clk 0:01:36.7]} 39. a6 {[%clk 0:01:14.4]} 39... Rf8 {[%clk 0:01:12.8]} 40.
Kc4 {[%clk 0:01:08]} 40... Ra8 {[%clk 0:01:05.7]} 41. Kb5 {[%clk 0:01:06.8]}
41... e4 {[%clk 0:01:00.6]} 42. Re1 {[%clk 0:01:05.2]} 42... Kxh6 {[%clk
0:00:59]} 43. Rxe4 {[%clk 0:01:01.8]} 43... Kh5 {[%clk 0:00:53]} 44. Kb6 {[%clk
0:01:00.7]} 1-0

[Event "Late-Titled-Tuesday-Blitz-February-20-2024"]
[Site "Chess.com"]
[Date "2024.02.20"]
[Round "4"]
[White "Fandorine"]
[Black "bilosuvenosu06"]
[Result "1-0"]
[WhiteElo "2930"]
[BlackElo "2503"]
[TimeControl "180+1"]
[EndTime "14:37:38 PST"]
[Termination "Fandorine won by resignation"]

1. d4 {[%clk 0:03:00.9]} 1... Nf6 {[%clk 0:02:58.4]} 2. c4 {[%clk 0:02:59.3]}
2... e6 {[%clk 0:02:58.5]} 3. Nc3 {[%clk 0:02:58.5]} 3... Bb4 {[%clk 0:02:58.3]}
4. Nf3 {[%clk 0:02:56]} 4... O-O {[%clk 0:02:57.4]} 5. Bg5 {[%clk 0:02:55.1]}
5... d5 {[%clk 0:02:57.4]} 6. e3 {[%clk 0:02:54]} 6... Nbd7 {[%clk 0:02:57.5]}
7. Qc2 {[%clk 0:02:53]} 7... c6 {[%clk 0:02:57.1]} 8. Bd3 {[%clk 0:02:52.2]}
8... h6 {[%clk 0:02:54.8]} 9. Bh4 {[%clk 0:02:51.8]} 9... Re8 {[%clk 0:02:54.5]}
10. O-O {[%clk 0:02:51.5]} 10... a6 {[%clk 0:02:53.7]} 11. c5 {[%clk 0:02:43.5]}
11... Ba5 {[%clk 0:02:44.2]} 12. Ne5 {[%clk 0:02:42.4]} 12... g5 {[%clk
0:02:18.6]} 13. Bg3 {[%clk 0:02:34.4]} 13... Nxe5 {[%clk 0:02:08.8]} 14. Bxe5
{[%clk 0:02:33.7]} 14... Bc7 {[%clk 0:02:07.9]} 15. Bxc7 {[%clk 0:02:15.7]}
15... Qxc7 {[%clk 0:02:07.7]} 16. f4 {[%clk 0:02:15.9]} 16... g4 {[%clk
0:02:05.8]} 17. Qf2 {[%clk 0:02:11]} 17... Kg7 {[%clk 0:02:04.8]} 18. Qh4 {[%clk
0:02:10.4]} 18... Qe7 {[%clk 0:01:48.6]} 19. Ne2 {[%clk 0:02:09]} 19... Ne4
{[%clk 0:01:03.6]} 20. Qxg4+ {[%clk 0:01:57.5]} 20... Kh8 {[%clk 0:01:02.3]} 21.
Bxe4 {[%clk 0:01:56.2]} 21... dxe4 {[%clk 0:00:59.3]} 22. Qh5 {[%clk 0:01:54.8]}
22... Qf6 {[%clk 0:00:58]} 23. Ng3 {[%clk 0:01:53.3]} 23... Rg8 {[%clk
0:00:51.4]} 24. Nxe4 {[%clk 0:01:48.2]} 24... Qg7 {[%clk 0:00:49.5]} 25. Qe5
{[%clk 0:01:45.5]} 25... Bd7 {[%clk 0:00:42.3]} 26. Qxg7+ {[%clk 0:01:44.4]}
26... Rxg7 {[%clk 0:00:42.1]} 27. Kf2 {[%clk 0:01:41.7]} 27... f5 {[%clk
0:00:42.1]} 28. Nd6 {[%clk 0:01:41.4]} 28... Rag8 {[%clk 0:00:40.3]} 29. g3
{[%clk 0:01:40.6]} 29... Be8 {[%clk 0:00:38.9]} 30. b4 {[%clk 0:01:27]} 30... h5
{[%clk 0:00:38.8]} 31. Rh1 {[%clk 0:01:12.1]} 31... Rc7 {[%clk 0:00:30.3]} 32.
h3 {[%clk 0:01:09.3]} 32... Kg7 {[%clk 0:00:30.1]} 33. Rag1 {[%clk 0:01:06.2]}
33... Kf6 {[%clk 0:00:29.8]} 34. g4 {[%clk 0:01:06.7]} 34... hxg4 {[%clk
0:00:28.5]} 35. hxg4 {[%clk 0:01:07.6]} 35... Bg6 {[%clk 0:00:24.8]} 36. gxf5
{[%clk 0:01:06.9]} 36... exf5 {[%clk 0:00:24.8]} 37. Rh6 {[%clk 0:01:06.6]}
37... Rcg7 {[%clk 0:00:19.8]} 38. Rg5 {[%clk 0:01:05.2]} 38... Ke6 {[%clk
0:00:19.4]} 39. Nxf5 {[%clk 0:01:01.5]} 1-0

[Event "Late-Titled-Tuesday-Blitz-February-20-2024"]
[Site "Chess.com"]
[Date "2024.02.20"]
[Round "4"]
[White "vrekhson"]
[Black "IndianSchoolOfSuffering"]
[Result "1-0"]
[WhiteElo "2299"]
[BlackElo "2427"]
[TimeControl "180+1"]
[EndTime "14:37:39 PST"]
[Termination "vrekhson won by resignation"]

1. e4 {[%clk 0:03:00.9]} 1... c6 {[%clk 0:02:59.2]} 2. d4 {[%clk 0:03:00.5]}
2... d5 {[%clk 0:02:57.9]} 3. Nc3 {[%clk 0:02:58.5]} 3... dxe4 {[%clk
0:02:56.9]} 4. Nxe4 {[%clk 0:02:58.7]} 4... Nf6 {[%clk 0:02:57.2]} 5. Nxf6+
{[%clk 0:02:58.9]} 5... exf6 {[%clk 0:02:58.1]} 6. Ne2 {[%clk 0:02:59.1]} 6...
Bd6 {[%clk 0:02:57.4]} 7. Bf4 {[%clk 0:02:57.9]} 7... O-O {[%clk 0:02:55]} 8.
Qd2 {[%clk 0:02:56.9]} 8... Re8 {[%clk 0:02:53.8]} 9. O-O-O {[%clk 0:02:56.6]}
9... a5 {[%clk 0:02:50.2]} 10. Bxd6 {[%clk 0:02:55.9]} 10... Qxd6 {[%clk
0:02:48.6]} 11. Ng3 {[%clk 0:02:56.1]} 11... a4 {[%clk 0:02:46.9]} 12. Bd3
{[%clk 0:02:53.8]} 12... a3 {[%clk 0:02:45.7]} 13. b3 {[%clk 0:02:53.7]} 13...
Na6 {[%clk 0:02:44]} 14. Rhe1 {[%clk 0:02:43.3]} 14... Bd7 {[%clk 0:02:42]} 15.
Bf5 {[%clk 0:02:35.8]} 15... g6 {[%clk 0:02:07.6]} 16. Bxd7 {[%clk 0:02:33.1]}
16... Qxd7 {[%clk 0:02:07.6]} 17. Ne4 {[%clk 0:02:30.2]} 17... Kg7 {[%clk
0:02:01.2]} 18. Qf4 {[%clk 0:02:29.9]} 18... Re6 {[%clk 0:01:58.6]} 19. Nc5
{[%clk 0:02:14]} 19... Nxc5 {[%clk 0:01:56.2]} 20. dxc5 {[%clk 0:02:14.9]} 20...
Rxe1 {[%clk 0:01:53.4]} 21. Rxe1 {[%clk 0:02:15.5]} 21... Rd8 {[%clk 0:01:50.5]}
22. h4 {[%clk 0:02:03.2]} 22... Qd5 {[%clk 0:01:49.4]} 23. g4 {[%clk 0:01:31.9]}
23... Qxc5 {[%clk 0:01:46.5]} 24. Qe3 {[%clk 0:01:25.1]} 24... Qb4 {[%clk
0:01:36.8]} 25. h5 {[%clk 0:01:14.7]} 25... g5 {[%clk 0:01:08.7]} 26. f3 {[%clk
0:01:05.4]} 26... Rd5 {[%clk 0:01:03.2]} 27. c3 {[%clk 0:00:53.4]} 27... Qd6
{[%clk 0:00:58.3]} 28. Kc2 {[%clk 0:00:48.4]} 28... Re5 {[%clk 0:00:58]} 29. Qf2
{[%clk 0:00:47.5]} 29... f5 {[%clk 0:00:41.4]} 30. h6+ {[%clk 0:00:28.4]} 30...
Kxh6 {[%clk 0:00:38.8]} 31. Qh2+ {[%clk 0:00:27.7]} 1-0

[Event "Late-Titled-Tuesday-Blitz-February-20-2024"]
[Site "Chess.com"]
[Date "2024.02.20"]
[Round "4"]
[White "Felix-Rose"]
[Black "PNEPaul"]
[Result "1-0"]
[WhiteElo "2268"]
[BlackElo "1981"]
[TimeControl "180+1"]
[EndTime "14:37:39 PST"]
[Termination "Felix-Rose won by resignation"]

1. d4 {[%clk 0:02:59.9]} 1... a6 {[%clk 0:02:32.4]} 2. e4 {[%clk 0:02:59.2]}
2... d6 {[%clk 0:02:32.8]} 3. Nc3 {[%clk 0:02:57.5]} 3... g6 {[%clk 0:02:33]} 4.
h3 {[%clk 0:02:56.2]} 4... h6 {[%clk 0:02:33.2]} 5. Nf3 {[%clk 0:02:56.2]} 5...
Nd7 {[%clk 0:02:32.6]} 6. Be3 {[%clk 0:02:54.8]} 6... Bg7 {[%clk 0:02:32.4]} 7.
Be2 {[%clk 0:02:54.6]} 7... e5 {[%clk 0:02:32.6]} 8. O-O {[%clk 0:02:50.5]} 8...
Ne7 {[%clk 0:02:32.6]} 9. dxe5 {[%clk 0:02:50.7]} 9... dxe5 {[%clk 0:02:32.1]}
10. Bc4 {[%clk 0:02:48.8]} 10... O-O {[%clk 0:02:31.3]} 11. a4 {[%clk
0:02:48.7]} 11... Kh7 {[%clk 0:02:31.1]} 12. a5 {[%clk 0:02:48.5]} 12... f5
{[%clk 0:02:30.9]} 13. Qd3 {[%clk 0:02:26.8]} 13... f4 {[%clk 0:02:29.9]} 14.
Bc1 {[%clk 0:02:16.4]} 14... c6 {[%clk 0:02:26.8]} 15. Rd1 {[%clk 0:02:15.7]}
15... Qe8 {[%clk 0:02:25.8]} 16. Na4 {[%clk 0:02:10.1]} 16... g5 {[%clk
0:02:20.7]} 17. Be6 {[%clk 0:02:06.3]} 17... Nf6 {[%clk 0:02:11]} 18. Bxc8
{[%clk 0:01:59.9]} 18... Rxc8 {[%clk 0:02:10.6]} 19. Nxe5 {[%clk 0:01:53.1]}
19... Ng6 {[%clk 0:01:56.5]} 20. Nxg6 {[%clk 0:01:32.7]} 20... Qxg6 {[%clk
0:01:55.8]} 21. f3 {[%clk 0:01:30.5]} 21... Rcd8 {[%clk 0:01:51]} 22. Qe2 {[%clk
0:01:25.3]} 22... Rxd1+ {[%clk 0:01:50.6]} 23. Qxd1 {[%clk 0:01:25.7]} 23... Nh5
{[%clk 0:01:49.8]} 24. Bd2 {[%clk 0:01:02.7]} 24... Bd4+ {[%clk 0:01:44.3]} 25.
Kh2 {[%clk 0:01:00.4]} 25... Bf2 {[%clk 0:01:43.4]} 26. Bc3 {[%clk 0:00:56.7]}
26... Rf7 {[%clk 0:01:27.8]} 27. Qd3 {[%clk 0:00:52.3]} 27... Bg3+ {[%clk
0:01:17.5]} 28. Kg1 {[%clk 0:00:49.2]} 28... Nf6 {[%clk 0:01:17.3]} 29. Rd1
{[%clk 0:00:45.6]} 29... Rd7 {[%clk 0:01:14.3]} 30. Qe2 {[%clk 0:00:45.9]} 30...
Rxd1+ {[%clk 0:01:13.6]} 31. Qxd1 {[%clk 0:00:46.8]} 31... Qf7 {[%clk
0:01:06.2]} 32. Qd4 {[%clk 0:00:42.7]} 32... Kg6 {[%clk 0:00:58.1]} 33. Qxf6+
{[%clk 0:00:31.1]} 33... Qxf6 {[%clk 0:00:57.5]} 34. Bxf6 {[%clk 0:00:32]} 34...
Kxf6 {[%clk 0:00:57.3]} 35. Kf1 {[%clk 0:00:30.5]} 35... h5 {[%clk 0:00:49.3]}
36. Nc5 {[%clk 0:00:30.1]} 1-0

[Event "Late-Titled-Tuesday-Blitz-February-20-2024"]
[Site "Chess.com"]
[Date "2024.02.20"]
[Round "4"]
[White "DanielNaroditsky"]
[Black "koziororo"]
[Result "1-0"]
[WhiteElo "3109"]
[BlackElo "2601"]
[TimeControl "180+1"]
[EndTime "14:37:41 PST"]
[Termination "DanielNaroditsky won by resignation"]

1. e4 {[%clk 0:03:00.9]} 1... c5 {[%clk 0:03:00.2]} 2. c3 {[%clk 0:03:00.9]}
2... Nf6 {[%clk 0:02:56.1]} 3. e5 {[%clk 0:03:01.4]} 3... Nd5 {[%clk 0:02:56.2]}
4. Nf3 {[%clk 0:03:02.3]} 4... e6 {[%clk 0:02:55.3]} 5. d4 {[%clk 0:03:02.4]}
5... cxd4 {[%clk 0:02:52.9]} 6. cxd4 {[%clk 0:03:03.3]} 6... d6 {[%clk
0:02:50.6]} 7. Bc4 {[%clk 0:03:01.2]} 7... Nc6 {[%clk 0:02:48.7]} 8. O-O {[%clk
0:03:01]} 8... Nb6 {[%clk 0:02:43.1]} 9. Bd3 {[%clk 0:03:00.3]} 9... Be7 {[%clk
0:02:40.6]} 10. Nc3 {[%clk 0:03:00.5]} 10... h6 {[%clk 0:02:32.5]} 11. exd6
{[%clk 0:03:01.4]} 11... Bxd6 {[%clk 0:02:31.9]} 12. Re1 {[%clk 0:03:02.3]}
12... O-O {[%clk 0:02:29.5]} 13. a3 {[%clk 0:03:03.1]} 13... Be7 {[%clk
0:02:26.6]} 14. Bc2 {[%clk 0:03:03.1]} 14... Nd7 {[%clk 0:02:08.1]} 15. d5
{[%clk 0:03:01.1]} 15... exd5 {[%clk 0:02:00.2]} 16. Nxd5 {[%clk 0:03:02]} 16...
Re8 {[%clk 0:01:43.1]} 17. Bf4 {[%clk 0:02:54.8]} 17... Nf8 {[%clk 0:01:17.3]}
18. Nc7 {[%clk 0:02:43.2]} 18... Ne6 {[%clk 0:01:16.8]} 19. Nxe8 {[%clk
0:02:33.5]} 19... Nxf4 {[%clk 0:00:58.8]} 20. Qxd8 {[%clk 0:02:31.4]} 20... Bxd8
{[%clk 0:00:59.7]} 21. Nd6 {[%clk 0:02:23.7]} 21... Be6 {[%clk 0:00:58]} 22.
Nxb7 {[%clk 0:02:15.7]} 22... Bf6 {[%clk 0:00:57.3]} 23. Nc5 {[%clk 0:02:13.1]}
23... Bd5 {[%clk 0:00:56.5]} 24. Be4 {[%clk 0:02:08.6]} 24... Bxb2 {[%clk
0:00:52.6]} 25. Rad1 {[%clk 0:02:08.4]} 25... Bxe4 {[%clk 0:00:50.6]} 26. Rxe4
{[%clk 0:02:08.5]} 26... Ng6 {[%clk 0:00:41.4]} 27. a4 {[%clk 0:02:04.5]} 27...
Rc8 {[%clk 0:00:40.7]} 28. h4 {[%clk 0:02:01.9]} 28... Bf6 {[%clk 0:00:34.1]}
29. Nd7 {[%clk 0:02:00.7]} 29... Bb2 {[%clk 0:00:27.3]} 30. Rb1 {[%clk
0:02:00.4]} 30... Ba3 {[%clk 0:00:26.8]} 31. Rc4 {[%clk 0:01:58.9]} 31... Nge7
{[%clk 0:00:27]} 32. Nde5 {[%clk 0:01:58]} 32... f6 {[%clk 0:00:16.5]} 33. Nxc6
{[%clk 0:01:55.3]} 33... Rxc6 {[%clk 0:00:17.4]} 34. Rxc6 {[%clk 0:01:53.6]}
34... Nxc6 {[%clk 0:00:18.3]} 35. Rb7 {[%clk 0:01:53.9]} 35... a5 {[%clk
0:00:16.5]} 36. h5 {[%clk 0:01:53.5]} 36... Bb4 {[%clk 0:00:16.4]} 37. Nh4
{[%clk 0:01:53.3]} 37... Nd4 {[%clk 0:00:15.9]} 38. Rd7 {[%clk 0:01:53.3]} 38...
Ne6 {[%clk 0:00:15.2]} 39. Nf5 {[%clk 0:01:53.4]} 39... Bc5 {[%clk 0:00:09.3]}
40. g4 {[%clk 0:01:52.4]} 40... Bb4 {[%clk 0:00:09.3]} 41. Kg2 {[%clk
0:01:52.9]} 41... Ba3 {[%clk 0:00:08.7]} 42. Ra7 {[%clk 0:01:51.9]} 42... Bb4
{[%clk 0:00:08.8]} 43. Nh4 {[%clk 0:01:52.1]} 43... Nc5 {[%clk 0:00:04.7]} 44.
Ng6 {[%clk 0:01:51.4]} 44... Nxa4 {[%clk 0:00:04.2]} 45. Nf4 {[%clk 0:01:43.9]}
45... Nc5 {[%clk 0:00:04.4]} 46. Nd5 {[%clk 0:01:42.2]} 46... Bd2 {[%clk
0:00:03.7]} 47. Ne7+ {[%clk 0:01:41.7]} 47... Kh7 {[%clk 0:00:03.1]} 48. Nf5
{[%clk 0:01:41.5]} 48... Ne6 {[%clk 0:00:03.5]} 49. Re7 {[%clk 0:01:42.2]} 49...
Nf4+ {[%clk 0:00:03.5]} 50. Kf3 {[%clk 0:01:42.9]} 50... Kg8 {[%clk 0:00:01.1]}
51. Rxg7+ {[%clk 0:01:43.2]} 51... Kf8 {[%clk 0:00:01.8]} 52. Ra7 {[%clk
0:01:43.6]} 52... Nd5 {[%clk 0:00:01.8]} 53. Rd7 {[%clk 0:01:43.6]} 53... a4
{[%clk 0:00:01.3]} 54. Rxd5 {[%clk 0:01:43.9]} 1-0

[Event "Late-Titled-Tuesday-Blitz-February-20-2024"]
[Site "Chess.com"]
[Date "2024.02.20"]
[Round "4"]
[White "JaackCamel"]
[Black "FREZZY23"]
[Result "0-1"]
[WhiteElo "2180"]
[BlackElo "2424"]
[TimeControl "180+1"]
[EndTime "14:37:41 PST"]
[Termination "FREZZY23 won by checkmate"]

1. d4 {[%clk 0:03:00.9]} 1... Nf6 {[%clk 0:02:56.3]} 2. c4 {[%clk 0:02:59.7]}
2... g6 {[%clk 0:02:56.4]} 3. Nc3 {[%clk 0:02:59.2]} 3... Bg7 {[%clk 0:02:56.6]}
4. e4 {[%clk 0:02:59.1]} 4... d6 {[%clk 0:02:57.2]} 5. Nf3 {[%clk 0:02:58.6]}
5... O-O {[%clk 0:02:57.7]} 6. Be2 {[%clk 0:02:58.3]} 6... e5 {[%clk 0:02:57.4]}
7. Be3 {[%clk 0:02:58]} 7... Ng4 {[%clk 0:02:56.8]} 8. Bg5 {[%clk 0:02:57.5]}
8... f6 {[%clk 0:02:57]} 9. Bh4 {[%clk 0:02:57.3]} 9... g5 {[%clk 0:02:56.3]}
10. Bg3 {[%clk 0:02:56.9]} 10... Nc6 {[%clk 0:02:54.5]} 11. d5 {[%clk
0:02:54.2]} 11... Ne7 {[%clk 0:02:46.9]} 12. Nd2 {[%clk 0:02:53.3]} 12... Nh6
{[%clk 0:02:46.2]} 13. f3 {[%clk 0:02:46.6]} 13... f5 {[%clk 0:02:45.4]} 14. b4
{[%clk 0:02:45.5]} 14... a5 {[%clk 0:02:43.1]} 15. a3 {[%clk 0:02:43.6]} 15...
g4 {[%clk 0:02:40.4]} 16. c5 {[%clk 0:02:34.7]} 16... gxf3 {[%clk 0:02:38.4]}
17. gxf3 {[%clk 0:02:34.1]} 17... Ng6 {[%clk 0:02:36.4]} 18. cxd6 {[%clk
0:02:30.6]} 18... cxd6 {[%clk 0:02:36.3]} 19. Nc4 {[%clk 0:02:21.1]} 19... fxe4
{[%clk 0:02:34.8]} 20. fxe4 {[%clk 0:02:18.6]} 20... Nf4 {[%clk 0:02:34.5]} 21.
b5 {[%clk 0:01:57]} 21... Ng2+ {[%clk 0:02:30]} 22. Kd2 {[%clk 0:01:56.4]} 22...
Qg5+ {[%clk 0:02:28.8]} 23. Kc2 {[%clk 0:01:54.8]} 23... Ng4 {[%clk 0:02:29]}
24. Kb2 {[%clk 0:01:42.3]} 24... N2e3 {[%clk 0:02:27.8]} 25. Qd3 {[%clk
0:01:34.1]} 25... Nxc4+ {[%clk 0:02:25.6]} 26. Qxc4 {[%clk 0:01:33.8]} 26... Bd7
{[%clk 0:02:26.2]} 27. Rhf1 {[%clk 0:01:23.9]} 27... Qd2+ {[%clk 0:02:25.6]} 28.
Kb3 {[%clk 0:01:18.4]} 28... Rfc8 {[%clk 0:02:21.7]} 29. Qd3 {[%clk 0:01:15.5]}
29... Qg5 {[%clk 0:01:55.4]} 30. a4 {[%clk 0:01:07.5]} 30... Ne3 {[%clk
0:01:54.3]} 31. Rf3 {[%clk 0:01:06.7]} 31... Nc4 {[%clk 0:01:54]} 32. Rd1 {[%clk
0:01:03]} 32... Bg4 {[%clk 0:01:53]} 33. Rf2 {[%clk 0:00:58.7]} 33... Bxe2
{[%clk 0:01:50.8]} 34. Qxe2 {[%clk 0:00:48.7]} 34... Rc7 {[%clk 0:01:47.7]} 35.
Rf5 {[%clk 0:00:43.4]} 35... Qh6 {[%clk 0:01:41.7]} 36. Rd3 {[%clk 0:00:31.5]}
36... Rac8 {[%clk 0:01:40.4]} 37. Nd1 {[%clk 0:00:14.1]} 37... Qc1 {[%clk
0:01:37.6]} 38. Nb2 {[%clk 0:00:11.2]} 38... Qa1 {[%clk 0:01:13.5]} 39. Nxc4
{[%clk 0:00:08.1]} 39... Rxc4 {[%clk 0:01:13.6]} 40. Qb2 {[%clk 0:00:07.9]}
40... Qxa4# {[%clk 0:01:12.7]} 0-1

[Event "Late-Titled-Tuesday-Blitz-February-20-2024"]
[Site "Chess.com"]
[Date "2024.02.20"]
[Round "4"]
[White "tgpgoat"]
[Black "Kosak12"]
[Result "0-1"]
[WhiteElo "2558"]
[BlackElo "2814"]
[TimeControl "180+1"]
[EndTime "14:37:42 PST"]
[Termination "Kosak12 won by resignation"]

1. Nf3 {[%clk 0:03:00.4]} 1... Nf6 {[%clk 0:02:57.5]} 2. b3 {[%clk 0:03:01.1]}
2... g6 {[%clk 0:02:57.5]} 3. Bb2 {[%clk 0:03:01.5]} 3... Bg7 {[%clk 0:02:58.1]}
4. e3 {[%clk 0:03:02.2]} 4... d5 {[%clk 0:02:57.9]} 5. Be2 {[%clk 0:03:02.7]}
5... c5 {[%clk 0:02:57.6]} 6. O-O {[%clk 0:03:03.3]} 6... O-O {[%clk 0:02:57.3]}
7. c4 {[%clk 0:03:03.9]} 7... d4 {[%clk 0:02:43.3]} 8. exd4 {[%clk 0:02:44.6]}
8... Nh5 {[%clk 0:02:37.3]} 9. Ne5 {[%clk 0:02:41.8]} 9... cxd4 {[%clk
0:02:25.6]} 10. Bxh5 {[%clk 0:02:40.5]} 10... Bxe5 {[%clk 0:02:25.4]} 11. Bf3
{[%clk 0:02:38.1]} 11... Nc6 {[%clk 0:02:20.5]} 12. Re1 {[%clk 0:02:37.6]} 12...
Bg7 {[%clk 0:02:11.7]} 13. d3 {[%clk 0:02:37.4]} 13... e5 {[%clk 0:02:05.9]} 14.
Nd2 {[%clk 0:02:35.5]} 14... Kh8 {[%clk 0:02:03.3]} 15. c5 {[%clk 0:02:31.6]}
15... Be6 {[%clk 0:01:57]} 16. Rc1 {[%clk 0:02:29.8]} 16... Qc7 {[%clk
0:01:35.2]} 17. Ne4 {[%clk 0:02:24.6]} 17... Rad8 {[%clk 0:01:28.9]} 18. Nd6
{[%clk 0:02:19.4]} 18... f5 {[%clk 0:01:22]} 19. b4 {[%clk 0:02:17.8]} 19...
Nxb4 {[%clk 0:01:18.5]} 20. Bxd4 {[%clk 0:01:55.2]} 20... Nxa2 {[%clk 0:00:53]}
21. Rc2 {[%clk 0:01:19.7]} 21... Bb3 {[%clk 0:00:35.2]} 22. Rxe5 {[%clk
0:00:45.9]} 22... Nb4 {[%clk 0:00:24.2]} 23. Qe2 {[%clk 0:00:45.4]} 23... Nxc2
{[%clk 0:00:22.8]} 24. Re7 {[%clk 0:00:44.3]} 24... Nxd4 {[%clk 0:00:22.8]} 25.
Rxc7 {[%clk 0:00:42.6]} 25... Nxe2+ {[%clk 0:00:22.8]} 26. Bxe2 {[%clk
0:00:43.5]} 26... b6 {[%clk 0:00:20.6]} 27. Nb7 {[%clk 0:00:40.5]} 27... Rc8
{[%clk 0:00:19.5]} 28. cxb6 {[%clk 0:00:38.5]} 28... axb6 {[%clk 0:00:19.6]} 29.
Rxc8 {[%clk 0:00:37.3]} 29... Rxc8 {[%clk 0:00:19.6]} 0-1

[Event "Late-Titled-Tuesday-Blitz-February-20-2024"]
[Site "Chess.com"]
[Date "2024.02.20"]
[Round "4"]
[White "rikchessmx"]
[Black "harkow"]
[Result "1/2-1/2"]
[WhiteElo "2239"]
[BlackElo "2431"]
[TimeControl "180+1"]
[EndTime "14:37:43 PST"]
[Termination "Game drawn by repetition"]

1. e4 {[%clk 0:01:20.3]} 1... Nf6 {[%clk 0:02:59.7]} 2. Nc3 {[%clk 0:01:19.3]}
2... d5 {[%clk 0:02:59.7]} 3. exd5 {[%clk 0:01:19.5]} 3... Nxd5 {[%clk
0:03:00.6]} 4. Bc4 {[%clk 0:01:19.4]} 4... Nb6 {[%clk 0:03:00.8]} 5. Bb3 {[%clk
0:01:18.9]} 5... Nc6 {[%clk 0:03:01.3]} 6. Nge2 {[%clk 0:01:17.7]} 6... Bf5
{[%clk 0:03:01.1]} 7. d3 {[%clk 0:01:17.8]} 7... e6 {[%clk 0:03:01.6]} 8. Be3
{[%clk 0:01:17.4]} 8... Be7 {[%clk 0:03:01.7]} 9. Qd2 {[%clk 0:01:17.1]} 9... h6
{[%clk 0:03:01.4]} 10. h3 {[%clk 0:01:16.8]} 10... Qd7 {[%clk 0:03:01.1]} 11. g4
{[%clk 0:01:16.7]} 11... Bh7 {[%clk 0:03:01]} 12. O-O-O {[%clk 0:01:14.7]} 12...
O-O-O {[%clk 0:03:00.5]} 13. f4 {[%clk 0:01:14.6]} 13... Kb8 {[%clk 0:03:00.4]}
14. Ng3 {[%clk 0:01:13.8]} 14... Nd4 {[%clk 0:02:54.1]} 15. Qf2 {[%clk
0:01:12.1]} 15... Nxb3+ {[%clk 0:02:53.8]} 16. axb3 {[%clk 0:01:12.6]} 16... Bf6
{[%clk 0:02:42.3]} 17. Nge4 {[%clk 0:01:10.4]} 17... Be7 {[%clk 0:02:39.6]} 18.
Rhf1 {[%clk 0:01:05.8]} 18... Qc6 {[%clk 0:02:39.5]} 19. f5 {[%clk 0:01:04.8]}
19... exf5 {[%clk 0:02:38.3]} 20. gxf5 {[%clk 0:01:04.5]} 20... Bb4 {[%clk
0:02:32.5]} 21. Bd4 {[%clk 0:00:59]} 21... f6 {[%clk 0:02:30]} 22. Bc5 {[%clk
0:00:55.7]} 22... Bxc3 {[%clk 0:02:15.8]} 23. bxc3 {[%clk 0:00:55]} 23... Rhe8
{[%clk 0:02:15.9]} 24. Ba3 {[%clk 0:00:53.8]} 24... Re5 {[%clk 0:02:14.2]} 25.
Ng3 {[%clk 0:00:38.7]} 25... Nd5 {[%clk 0:02:06.5]} 26. c4 {[%clk 0:00:37.2]}
26... Nc3 {[%clk 0:02:02.1]} 27. Rde1 {[%clk 0:00:36.8]} 27... a5 {[%clk
0:01:46.7]} 28. Bb2 {[%clk 0:00:36.3]} 28... Na2+ {[%clk 0:01:43.9]} 29. Kb1
{[%clk 0:00:34]} 29... Nb4 {[%clk 0:01:44]} 30. Bxe5 {[%clk 0:00:30.5]} 30...
fxe5 {[%clk 0:01:44.9]} 31. Rxe5 {[%clk 0:00:25.6]} 31... a4 {[%clk 0:01:44.6]}
32. Qc5 {[%clk 0:00:23.9]} 32... Qxc5 {[%clk 0:01:41.7]} 33. Rxc5 {[%clk
0:00:23.5]} 33... axb3 {[%clk 0:01:42.3]} 34. Rb5 {[%clk 0:00:18.4]} 34... bxc2+
{[%clk 0:01:36.1]} 35. Kb2 {[%clk 0:00:17.4]} 35... c5 {[%clk 0:01:29]} 36. Rxb4
{[%clk 0:00:17.3]} 36... cxb4 {[%clk 0:01:28.6]} 37. Kxc2 {[%clk 0:00:17.9]}
37... Re8 {[%clk 0:01:20.2]} 38. Rf3 {[%clk 0:00:17.9]} 38... Re1 {[%clk
0:01:14]} 39. Kb3 {[%clk 0:00:18]} 39... Rb1+ {[%clk 0:01:13.6]} 40. Kc2 {[%clk
0:00:18.3]} 40... Rg1 {[%clk 0:01:13.3]} 41. Kb3 {[%clk 0:00:18.1]} 41... Rb1+
{[%clk 0:01:12]} 42. Kc2 {[%clk 0:00:18]} 42... Rg1 {[%clk 0:01:00.5]} 43. Kb3
{[%clk 0:00:17.9]} 43... Rb1+ {[%clk 0:00:59.7]} 1/2-1/2